fUSD/lending_fUSD_20240115
["ID","MTS","AMOUNT","RATE_DAILY","PERIOD"]
[311717579,1705351832747,-165.92298533,0.000249,2]
[311717580,1705351832757,-152.52963997,0.000249,2]
[311717581,1705351832766,-1729.09587506,0.000249,2]
[311717582,1705351832776,-254.58565054,0.000249,2]
[311717583,1705351832785,-153.53,0.00024913,2]
[311717584,1705351832794,-150.95,0.00024981,2]
[311717585,1705351832803,-2540.5711009,0.00024998,2]
[311717586,1705351832813,-243773.58279275,0.00024999,2]
[311717587,1705351832846,-2887.94746135,0.00024999,2]
[311717589,1705351838392,-283.46060076,0.00024999,2]
[311717590,1705351838404,-716.53939924,0.00024999,2]
[311717591,1705351838417,-2817.60525576,0.00024999,2]
[311717592,1705351838543,-2850.37772516,0.00024999,2]
[311717593,1705351838572,-40788.68465953,0.00024999,2]
[311717594,1705351838584,-1172.8,0.00024999,2]
[311717595,1705351838639,-559.28171963,0.00024999,2]
[311717596,1705351838668,-760604.58661498,0.00024999,2]
[311717597,1705351838679,-960071.48045158,0.00025,2]
[311717598,1705351838689,-505444.87458687,0.00025,2]
[311717599,1705351838699,-693.1186857,0.00025,2]
[311717600,1705351838709,-1582.64010755,0.00025,2]
[311717602,1705351838720,-303.27668532,0.00025,2]
[311717604,1705351838729,-1070.18909292,0.00025,2]
[311717606,1705351838739,-350.0,0.00025,3]
[311717607,1705351838749,-650.0,0.00025,2]
[311717608,1705351838758,-374.60559964,0.00025,2]
[311717609,1705351838768,-210.0,0.00025081,2]
[311717610,1705351838778,-153.53,0.00025148,2]
[311717612,1705351838788,-150.95,0.00025246,2]
[311717614,1705351838798,-153.53,0.00025383,2]
[311717616,1705351838807,-1849.28,0.00025419,2]
[311717618,1705351838820,-150.95,0.0002551,2]
[311717620,1705351838829,-156.06,0.00025571,2]
[311717622,1705351838839,-153.53,0.00025618,2]
[311717624,1705351838849,-156.06,0.00025754,2]
[311717626,1705351838858,-150.95,0.00025775,2]
[311717628,1705351838868,-3671.0,0.000258,2]
[311717631,1705351838878,-153.53,0.00025853,2]
[311717633,1705351838888,-37622.0,0.000259,2]
[311717635,1705351838897,-156.06,0.00025936,2]
[311717637,1705351838907,-5000.0,0.00026,2]
[311717639,1705351838917,-531.72,0.00026023,2]
[311717641,1705351838926,-150.95,0.0002604,2]
[311717643,1705351838936,-150.0,0.00026079,2]
[311717645,1705351838946,-156.06,0.00026119,2]
[311717647,1705351838955,-1246.1040684,0.00026142,3]
[311717649,1705351838965,-262.5,0.00026236,2]
[311717651,1705351838974,-156.06,0.00026302,2]
[311717653,1705351838985,-150.95,0.00026304,2]
[311717655,1705351838997,-167.0,0.00026326,2]
[311717657,1705351839007,-1849.28,0.00026397,2]
[311717659,1705351839017,-3119.28,0.00026413,2]
[311717661,1705351839027,-156.06,0.00026484,2]
[311717664,1705351839037,-150.95,0.00026569,2]
[311717666,1705351839046,-3699.84,0.00026575,2]
[311717668,1705351839056,-2600.31,0.00026575,2]
[311717670,1705351839065,-205.0,0.00026657,2]
[311717672,1705351839076,-206.0,0.00026657,2]
[311717674,1705351839085,-156.06,0.00026667,2]
[311717676,1705351839095,-155.2371007,0.00026701,2]
[311717678,1705351839104,-150.95,0.00026834,2]
[311717680,1705351839114,-156.06,0.0002685,2]
[311717682,1705351839123,-1000.0,0.000269,2]
[311717684,1705351839133,-167.20178626,0.00026998,2]
[311717686,1705351839142,-201.83579665,0.00026998,2]
[311717688,1705351839152,-1247.48098647,0.00026998,2]
[311717690,1705351839161,-1306.17308962,0.00026999,2]
[311717692,1705351839171,-129289.95553674,0.00027,2]
[311717694,1705351839181,-155.0,0.00027,2]
[311717696,1705351839190,-400.0,0.00027,3]
[311717698,1705351839200,-202.14,0.00027002,2]
[311717700,1705351839209,-156.06,0.00027032,2]
[311717702,1705351839219,-150.95,0.00027099,2]
[311717704,1705351839229,-1813.4,0.00027123,2]
[311717707,1705351839239,-156.06,0.00027215,2]
[311717708,1705351839249,-1000.0,0.00027256,2]
[311717711,1705351839259,-576.13291169,0.00027256,2]
[311717713,1705351839268,-202.14,0.0002727,2]
[311717715,1705351839279,-848.53746029,0.00027331,3]
[311717717,1705351839289,-1884.85063565,0.00027331,3]
[311717719,1705351839299,-270.48594469,0.00027331,3]
[311717721,1705351839308,-245.05615484,0.00027331,3]
[311717723,1705351839320,-245.05615484,0.00027331,3]
[311717725,1705351839330,-255.54292949,0.00027331,3]
[311717727,1705351839340,-150.95,0.00027363,2]
[311717729,1705351839349,-3119.28,0.00027375,2]
[311717731,1705351839359,-1849.28,0.00027376,2]
[311717781,1705351839370,-1246.1040684,0.00027384,3]
[311717788,1705351839845,-3608.1097954,0.00027397,2]
[311717790,1705351839855,-150.0,0.00027397,2]
[311717792,1705351839864,-3000.0,0.00027397,2]
[311717794,1705351839873,-3000.0,0.00027397,2]
[311717796,1705351839882,-3000.0,0.00027397,2]
[311717798,1705351839893,-3000.0,0.00027397,2]
[311717800,1705351839903,-3000.0,0.00027397,2]
[311717802,1705351839912,-3000.0,0.00027397,2]
[311717804,1705351839921,-3000.0,0.00027397,2]
[311717806,1705351839931,-3000.0,0.00027397,2]
[311717808,1705351839940,-3000.0,0.00027397,2]
[311717810,1705351839949,-3000.0,0.00027397,2]
[311717812,1705351839959,-3000.0,0.00027397,2]
[311717814,1705351839968,-3000.0,0.00027397,2]
[311717816,1705351839977,-3000.0,0.00027397,2]
[311717818,1705351839986,-3000.0,0.00027397,2]
[311717820,1705351839998,-3000.0,0.00027397,2]
[311717822,1705351840007,-3000.0,0.00027397,2]
[311717824,1705351840016,-3000.0,0.00027397,2]
[311717826,1705351840025,-3000.0,0.00027397,2]
[311717828,1705351840035,-3000.0,0.00027397,2]
[311717830,1705351840044,-3000.0,0.00027397,2]
[311717833,1705351840053,-155.0,0.00027397,2]
[311717835,1705351840063,-250.0,0.00027397,2]
[311717837,1705351840073,-15053.3,0.00027397,2]
[311717839,1705351840082,-2500.0,0.00027397,4]
[311717841,1705351840091,-33599.16,0.00027397,2]
[311717842,1705351840101,-2703.45525557,0.00027397,2]
[311717904,1705351840736,-20679.52474443,0.00027397,2]
[311717906,1705351840745,-156.06,0.00027398,2]
[311717908,1705351840755,-4520.18,0.00027398,2]
[311717910,1705351840764,-4520.18,0.00027398,2]
[311717912,1705351840773,-4520.18,0.00027398,2]
[311717914,1705351840783,-4520.18,0.00027398,2]
[311717916,1705351840792,-4520.18,0.00027398,2]
[311717918,1705351840801,-4520.18,0.00027398,2]
[311717920,1705351840810,-4520.18,0.00027398,2]
[311717922,1705351840819,-4520.18,0.00027398,2]
[311717924,1705351840828,-4520.18,0.00027398,2]
[311717926,1705351840837,-250.0,0.000274,2]
[311717928,1705351840846,-5689.32768707,0.000274,2]
[311717930,1705351840856,-3392.77,0.000274,2]
[311717932,1705351840865,-3392.77,0.000274,2]
[311717934,1705351840875,-3392.77,0.000274,2]
[311717936,1705351840884,-3392.77,0.000274,2]
[311717938,1705351840893,-3392.77,0.000274,2]
[311717940,1705351840903,-3392.77,0.000274,2]
[311717942,1705351840912,-3392.77,0.000274,2]
[311717944,1705351840921,-3392.77,0.000274,2]
[311717946,1705351840930,-3392.77,0.000274,2]
[311717948,1705351840939,-3392.77,0.000274,2]
[311717950,1705351840949,-202.14,0.00027537,2]
[311717953,1705351840958,-15053.3,0.00027556,2]
[311717955,1705351840968,-18.96858921,0.00027565,2]
[311717957,1705351840982,-703.38141079,0.00027565,2]
[311717959,1705351840996,-156.06,0.0002758,2]
[311717961,1705351841009,-293.0,0.00027589,2]
[311717963,1705351841020,-150.95,0.00027628,2]
[311717965,1705351841031,-15053.3,0.00027714,2]
[311717967,1705351841041,-156.06,0.00027763,2]
[311717969,1705351841050,-6181.0,0.00027764,2]
[311717971,1705351841060,-167.0,0.00027774,2]
[311717973,1705351841070,-202.14,0.00027804,2]
[311717975,1705351841079,-15053.3,0.00027872,2]
[311717977,1705351841089,-150.95,0.00027893,2]
[311717979,1705351841098,-415.6984,0.00027898,2]
[311717981,1705351841108,-17655.99361132,0.00027899,2]
[311717983,1705351841117,-1304.60817897,0.000279,2]
[311717985,1705351841127,-150.0,0.00027945,2]
[311717987,1705351841136,-156.06,0.00027946,2]
[311717989,1705351841145,-5811.66,0.00027994,2]
[311717991,1705351841155,-32727.56915807,0.00027999,2]
[311717993,1705351841164,-688.02629954,0.00028,2]
[311717995,1705351841173,-202.92894676,0.00028,2]
[311717997,1705351841182,-3000.0,0.00028,2]
[311717999,1705351841192,-200.0,0.00028,2]
[311718001,1705351841202,-3000.0,0.0002801,2]
[311718003,1705351841211,-3000.0,0.0002802,2]
[311718005,1705351841222,-3000.0,0.0002803,2]
[311718007,1705351841232,-15053.3,0.0002803,2]
[311718009,1705351841241,-3000.0,0.0002804,2]
[311718011,1705351841253,-2648.95917377,0.0002805,2]
[311718014,1705351841266,-314.89763872,0.0002805,2]
[311718061,1705351841701,-1718.891,0.00022702,2]
[311718079,1705351841860,-17566.2572,0.00022702,2]
[311718081,1705351841870,-36.14318751,0.0002805,2]
[311718084,1705351841880,-3000.0,0.0002806,2]
[311718096,1705351841981,-164.7,0.00028063,2]
[311718098,1705351841992,-3000.0,0.0002807,2]
[311718100,1705351842001,-202.14,0.00028072,2]
[311718102,1705351842010,-3000.0,0.0002808,2]
[311718104,1705351842019,-3000.0,0.0002809,2]
[311718106,1705351842028,-3000.0,0.000281,2]
[311718107,1705351842037,-3000.0,0.0002811,2]
[311718108,1705351842047,-3000.0,0.0002812,2]
[311718109,1705351842056,-156.06,0.00028128,2]
[311718110,1705351842066,-3000.0,0.0002813,2]
[311718111,1705351842076,-3000.0,0.0002814,2]
[311718112,1705351842086,-3000.0,0.0002815,2]
[311718113,1705351842095,-162.16215901,0.0002815,2]
[311718115,1705351842105,-150.95,0.00028157,2]
[311718117,1705351842115,-3000.0,0.0002816,2]
[311718119,1705351842124,-165.92298532,0.00028165,2]
[311718121,1705351842134,-3000.0,0.0002817,2]
[311718123,1705351842142,-832.40509277,0.0002818,2]
[311718125,1705351842158,-568.37329392,0.0002818,2]
[311718128,1705351842170,-393.67099079,0.0002818,2]
[311718131,1705351842190,-355.72425126,0.0002818,2]
[311718225,1705351843060,-849.82637126,0.0002818,2]
[311718227,1705351843073,-769.08462874,0.00028189,2]
[311718229,1705351843084,-2926.36919963,0.00028189,2]
[311718234,1705351843119,-786.56326059,0.00028189,2]
[311718241,1705351843178,-3007.59550457,0.00028189,2]
[311718243,1705351843190,-7563.68740647,0.00028189,2]
[311718246,1705351843199,-3000.0,0.0002819,2]
[311718248,1705351843207,-3000.0,0.000282,2]
[311718250,1705351843216,-3000.0,0.0002821,2]
[311718252,1705351843225,-1531.89706103,0.0002822,2]
[311718255,1705351843245,-1468.10293897,0.0002822,2]
[311718257,1705351843253,-3000.0,0.0002823,2]
[311718259,1705351843263,-3000.0,0.0002824,2]
[311718261,1705351843272,-3000.0,0.0002825,2]
[311718263,1705351843281,-3000.0,0.0002826,2]
[311718265,1705351843289,-3000.0,0.0002827,2]
[311718267,1705351843298,-3315.737065,0.0002828,2]
[311718269,1705351843307,-531.72,0.00028287,2]
[311718271,1705351843316,-3119.28,0.00028337,2]
[311718273,1705351843328,-202.14,0.00028339,2]
[311718275,1705351843336,-15053.3,0.00028347,2]
[311718277,1705351843345,-1849.28,0.00028354,2]
[311718279,1705351843354,-205.0,0.00028412,5]
[311718281,1705351843363,-150.95,0.00028422,2]
[311718283,1705351843372,-1261.17944145,0.00028425,2]
[311718285,1705351843381,-17655.99361124,0.00028435,2]
[311718287,1705351843390,-150.0,0.00028493,2]
[311718289,1705351843399,-12286.20478265,0.000285,2]
[311718291,1705351843408,-15053.3,0.00028505,2]
[311718294,1705351843416,-1261.17944145,0.00028566,2]
[311718296,1705351843425,-202.14,0.00028606,2]
[311718298,1705351843434,-1246.1040684,0.00028627,4]
[311718300,1705351843443,-829.04838557,0.00028664,2]
[311718376,1705351846234,-163.88168135,0.00028492,2]
[311718377,1705351846244,-14224.25161443,0.00028664,2]
[311718378,1705351846253,-1000.0,0.00028738,2]
[311718379,1705351846262,-155.0,0.00028767,2]
[311718380,1705351846271,-1000.0,0.00028767,2]
[311718381,1705351846281,-1000.0,0.00028767,2]
[311718382,1705351846290,-1000.0,0.00028767,2]
[311718383,1705351846301,-1000.0,0.00028767,2]
[311718384,1705351846310,-1000.0,0.00028767,2]
[311718385,1705351846321,-584.28797527,0.00028822,2]
[311718386,1705351846349,-4291.3,0.00028822,2]
[311718387,1705351846361,-3489.95,0.00028822,2]
[311718388,1705351968477,559.19420109,0.00020467,2]
[311718389,1705352000457,881.85563742,0.00021847,2]
[311718390,1705352001380,391.84940991,0.00018398,2]
[311718391,1705352020982,156.71115107,0.00020467,2]
[311718392,1705352034969,156.62101118,0.00020467,2]
[311718394,1705352050001,12041.61192209,0.0002,2]
[311718395,1705352050700,208.76466007,0.00021918,2]
[311718405,1705352280350,481.29,0.00019994,2]
[311718406,1705352341319,166.58,0.00021783,2]
[311718407,1705352494610,363.88006273,0.000221,2]
[311718408,1705352538485,1548.91,0.00021679,2]
[311718409,1705352685261,156.56,0.00021826,2]
[311718410,1705352708768,150.0,0.00020688,2]
[311718411,1705352710921,150.0,0.00020688,2]
[311718412,1705352722018,154.57,0.00021898,2]
[311718413,1705352781719,470.42,0.00019795,2]
[311718414,1705352781950,470.42,0.00022059,2]
[311718416,1705352966822,150.0,0.00021693,2]
[311718417,1705352966843,150.0,0.00021693,2]
[311718418,1705352966863,150.0,0.00021693,2]
[311718419,1705352966884,150.0,0.00021693,2]
[311718420,1705352966904,150.0,0.00021693,2]
[311718421,1705352966925,150.0,0.00021693,2]
[311718422,1705352966946,150.0,0.00021693,2]
[311718423,1705352966966,150.0,0.00021693,2]
[311718424,1705352966987,150.0,0.00021693,2]
[311718425,1705352967007,123.75,0.00021693,2]
[311718426,1705353017189,558.73823106,0.00020378,2]
[311718427,1705353021053,150.0,0.00020377,2]
[311718428,1705353021074,150.0,0.00020377,2]
[311718429,1705353021094,104.10391545,0.00020377,2]
[311718436,1705353032879,-154.57,0.00022156,2]
[311718437,1705353032890,-150.0,0.00022266,2]
[311718438,1705353032900,-3549.94892156,0.00022267,2]
[311718439,1705353032914,-354.11977769,0.00022267,2]
[311718440,1705353032925,-619.10457445,0.00022267,2]
[311718442,1705353032958,-2799.99,0.00022267,2]
[311718443,1705353032992,-17008.93930288,0.00022267,2]
[311718444,1705353033002,-7513.35583929,0.00022268,2]
[311718445,1705353033012,-153.70752208,0.000223,2]
[311718446,1705353033024,-500.0,0.000223,8]
[311718447,1705353033034,-154.69,0.0002232,2]
[311718448,1705353033045,-153.70752197,0.00022333,2]
[311718449,1705353033055,-322.05,0.00022333,2]
[311718450,1705353033067,-153.70752197,0.00022367,2]
[311718451,1705353033077,-3168.51,0.00022367,2]
[311718452,1705353033088,-150.99,0.00022367,2]
[311718453,1705353033099,-150.99,0.00022367,2]
[311718454,1705353033109,-499.99,0.00022367,2]
[311718455,1705353033119,-2080.3,0.00022367,2]
[311718456,1705353033130,-153.70752197,0.000224,2]
[311718457,1705353033140,-999.99,0.000224,2]
[311718458,1705353033150,-1000.0,0.000224,8]
[311718459,1705353033161,-154.57,0.00022413,2]
[311718460,1705353033171,-153.70752197,0.00022433,2]
[311718461,1705353033182,-153.70752197,0.00022466,2]
[311718462,1705353033192,-1000.0,0.00022499,2]
[311718463,1705353033201,-153.70752197,0.000225,2]
[311718464,1705353033212,-19119.1455636,0.000225,2]
[311718465,1705353033223,-237.24,0.000225,2]
[311718466,1705353033233,-1500.0,0.000225,8]
[311718467,1705353033244,-153.70752197,0.00022533,2]
[311718468,1705353033254,-153.70752197,0.00022566,2]
[311718469,1705353033265,-154.69,0.00022582,2]
[311718471,1705353033275,-153.70752197,0.000226,2]
[311718473,1705353033285,-2100.0,0.000226,8]
[311718475,1705353033296,-7423.569,0.000226,2]
[311718477,1705353033307,-153.70752197,0.00022633,2]
[311718479,1705353033317,-153.70752197,0.00022666,2]
[311718481,1705353033328,-379.70289,0.00022667,2]
[311718483,1705353033337,-154.57,0.0002267,2]
[311718485,1705353033347,-1473.75,0.00022671,2]
[311718487,1705353033357,-153.70752197,0.00022699,2]
[311718489,1705353033367,-2600.0,0.000227,8]
[311718491,1705353033377,-153.70752197,0.00022733,2]
[311718493,1705353033386,-153.70752197,0.00022766,2]
[311718495,1705353033395,-19878.0226,0.00022798,2]
[311718497,1705353033405,-288.97781243,0.00022799,2]
[311718499,1705353033415,-288.97781243,0.00022799,2]
[311718502,1705353033425,-288.97781243,0.00022799,2]
[311718503,1705353033434,-288.97781243,0.00022799,2]
[311718504,1705353033444,-288.97781243,0.00022799,2]
[311718505,1705353033453,-288.97781243,0.00022799,2]
[311718506,1705353033464,-288.97781243,0.00022799,2]
[311718507,1705353033474,-288.97781243,0.00022799,2]
[311718508,1705353033487,-288.97781243,0.00022799,2]
[311718509,1705353033497,-288.97781243,0.00022799,2]
[311718510,1705353033507,-288.97781243,0.00022799,2]
[311718511,1705353033516,-288.97781243,0.00022799,2]
[311718512,1705353033526,-288.97781243,0.00022799,2]
[311718513,1705353033536,-288.97781243,0.00022799,2]
[311718514,1705353033545,-288.97781243,0.00022799,2]
[311718515,1705353033556,-288.97781243,0.00022799,2]
[311718516,1705353033567,-288.97781243,0.00022799,2]
[311718517,1705353033576,-288.97781243,0.00022799,2]
[311718518,1705353033586,-288.97781243,0.00022799,2]
[311718519,1705353033595,-288.97781243,0.00022799,2]
[311718520,1705353033604,-288.97781243,0.00022799,2]
[311718521,1705353033614,-288.97781243,0.00022799,2]
[311718522,1705353033623,-288.97781243,0.00022799,2]
[311718523,1705353033633,-288.97781243,0.00022799,2]
[311718524,1705353033643,-288.97781243,0.00022799,2]
[311718525,1705353033652,-288.97781243,0.00022799,2]
[311718526,1705353033663,-288.97781243,0.00022799,2]
[311718527,1705353033673,-288.97781243,0.00022799,2]
[311718528,1705353033683,-288.97781243,0.00022799,2]
[311718529,1705353033693,-288.97781243,0.00022799,2]
[311718530,1705353033704,-288.97781243,0.00022799,2]
[311718531,1705353033714,-288.97781243,0.00022799,2]
[311718532,1705353033724,-288.97781243,0.00022799,2]
[311718533,1705353033734,-288.97781243,0.00022799,2]
[311718534,1705353033745,-288.97781243,0.00022799,2]
[311718535,1705353033755,-3580.2828,0.00022799,2]
[311718536,1705353033766,-165.92298532,0.00022799,2]
[311718537,1705353033775,-61.24155554,0.00022799,2]
[311718538,1705353033788,-461.43417062,0.00022799,2]
[311718539,1705353033811,-483.66642569,0.00022799,2]
[311718540,1705353033821,-243.0836991,0.00022799,2]
[311718541,1705353033834,-782.1627694,0.00022799,2]
[311718542,1705353033844,-283.38533868,0.00022799,2]
[311718543,1705353033855,-387.61028032,0.00022799,2]
[311718544,1705353033868,-291.09812629,0.00022799,2]
[311718545,1705353033880,-262.05787973,0.00022799,2]
[311718546,1705353033889,-1079.48158285,0.00022799,2]
[311718547,1705353033901,-395.76320725,0.00022799,2]
[311718548,1705353033921,-210.23724403,0.00022799,2]
[311718549,1705353033930,-153.70752197,0.00022799,2]
[311718550,1705353033940,-500.0,0.000228,8]
[311718551,1705353033949,-794.09331134,0.00022813,2]
[311718552,1705353033961,-212.24884046,0.00022813,2]
[311718553,1705353033971,-86.14079583,0.00022828,2]
[311718554,1705353033983,-920.20135597,0.00022828,2]
[311718555,1705353033991,-153.70752197,0.00022832,2]
[311718556,1705353034001,-1006.3421518,0.00022842,2]
[311718557,1705353034010,-154.69,0.00022845,2]
[311718558,1705353034020,-1224.15162501,0.0002285,2]
[311718559,1705353034029,-1685.48203411,0.0002285,2]
[311718560,1705353034038,-1006.3421518,0.00022857,2]
[311718561,1705353034048,-153.70752197,0.00022866,2]
[311718562,1705353034058,-1000.01298204,0.00022871,2]
[311718563,1705353034070,-6.32916976,0.00022871,2]
[311718564,1705353034079,-1006.3421518,0.00022886,2]
[311718565,1705353034089,-190.09319729,0.00022888,2]
[311718566,1705353034098,-190.09319729,0.00022889,2]
[311718567,1705353034108,-363.25148697,0.00022896,2]
[311718568,1705353034117,-96.0524631,0.00022896,2]
[311718569,1705353034137,-655.60712406,0.00022896,2]
[311718570,1705353034149,-1020.45976148,0.00022896,2]
[311718571,1705353034159,-158.4333686,0.00022897,2]
[311718572,1705353034170,-2147.15410892,0.00022897,2]
[311718573,1705353034182,-173.79652248,0.00022897,2]
[311718574,1705353034192,-2797.90173196,0.00022898,2]
[311718575,1705353034203,-6668.52324087,0.00022898,2]
[311718576,1705353034215,-2322.00060955,0.00022898,2]
[311718577,1705353038613,-271.55687506,0.00022896,2]
[311718578,1705353038623,-11998.27804082,0.00022898,2]
[311718580,1705353038635,-56837.51053427,0.00022898,2]
[311718594,1705353038763,-601.18654529,0.00022898,2]
[311718598,1705353038788,-975229.4655264,0.00022898,2]
[311718600,1705353038797,-66623.5566,0.00022899,2]
[311718602,1705353038807,-3437.9478,0.00022899,2]
[311718604,1705353038816,-500.0,0.00022899,2]
[311718606,1705353038826,-1100281.41532327,0.00022899,2]
[311718608,1705353038836,-17200.97818777,0.00022899,2]
[311718610,1705353038845,-153.70752197,0.00022899,2]
[311718612,1705353038854,-17200.97818768,0.00022899,2]
[311718614,1705353038864,-17200.97818768,0.00022899,2]
[311718616,1705353038873,-17200.97818768,0.00022899,2]
[311718618,1705353038882,-17200.97818768,0.00022899,2]
[311718620,1705353038891,-17200.97818768,0.00022899,2]
[311718622,1705353038900,-17200.97818768,0.000229,2]
[311718624,1705353038910,-17200.97818768,0.000229,2]
[311718626,1705353038919,-17200.97818768,0.000229,2]
[311718628,1705353038928,-17200.97818768,0.000229,2]
[311718631,1705353038937,-17200.97818768,0.000229,2]
[311718633,1705353038947,-17200.97818768,0.000229,2]
[311718635,1705353038956,-5800.0,0.000229,2]
[311718637,1705353038965,-1006.3421518,0.000229,2]
[311718639,1705353038975,-152.52963997,0.000229,2]
[311718641,1705353038984,-1224.15162501,0.000229,2]
[311718642,1705353038993,-1685.48203411,0.000229,2]
[311718644,1705353039002,-500.0,0.000229,8]
[311718647,1705353039011,-154.57,0.00022928,2]
[311718649,1705353039021,-190.09319729,0.0002299,2]
[311718650,1705353039031,-163.88168135,0.00022997,2]
[311718652,1705353039040,-268.13381279,0.00022998,2]
[311718654,1705353039049,-214.68433888,0.00022999,2]
[311718657,1705353039059,-1306.17308962,0.00022999,2]
[311718659,1705353039068,-1737.59447745,0.00022999,2]
[311718661,1705353039077,-155.0,0.00022999,2]
[311718663,1705353039086,-1035.7344448,0.00022999,2]
[311718664,1705353039095,-2133.7271505,0.00022999,2]
[311718666,1705353039104,-242.04927241,0.00022999,2]
[311718668,1705353039113,-417.33036051,0.00022999,2]
[311718669,1705353039122,-400.0,0.00022999,2]
[311718671,1705353039132,-38989.92626063,0.00022999,2]
[311718679,1705353039242,-300.0,0.00022999,2]
[311718681,1705353039251,-300.0,0.00022999,2]
[311718682,1705353039261,-300.0,0.00022999,2]
[311718684,1705353039270,-300.0,0.00022999,2]
[311718686,1705353039279,-300.0,0.00022999,2]
[311718688,1705353039289,-300.0,0.00022999,2]
[311718689,1705353039298,-8836500.5561849,0.00023,2]
[311718691,1705353039307,-585860.5299087,0.00023,2]
[311718693,1705353039316,-189.97,0.00023,2]
[311718694,1705353039325,-262.5,0.00023051,2]
[311718696,1705353039334,-154.69,0.00023107,2]
[311718698,1705353039343,-154.57,0.00023185,2]
[311718700,1705353039352,-210.7290097,0.00023288,4]
[311718701,1705353039361,-427.56267249,0.00023288,4]
[311718703,1705353039370,-401.88105203,0.00023288,4]
[311718705,1705353039380,-214.61869835,0.00023288,4]
[311718707,1705353039389,-152.62410864,0.00023288,4]
[311718709,1705353039398,-500.0,0.00023288,2]
[311718710,1705353039407,-500.0,0.00023288,2]
[311718712,1705353039416,-506.447692,0.00023288,2]
[311718713,1705353039425,-195.9476132,0.00023288,2]
[311718715,1705353039436,-500.0,0.00023288,2]
[311718717,1705353039444,-154.28306944,0.00023288,2]
[311718719,1705353039454,-217.04901085,0.00023288,2]
[311718720,1705353039463,-154.69,0.0002337,2]
[311718722,1705353039473,-154.57,0.00023443,2]
[311718724,1705353039482,-1000.0,0.00023538,2]
[311718726,1705353039494,-5675.88011639,0.00023598,3]
[311718727,1705353039503,-154.69,0.00023632,2]
[311718729,1705353039512,-1473.75,0.0002365,2]
[311718731,1705353039522,-205.0,0.00023657,2]
[311718733,1705353039532,-154.57,0.000237,2]
[311718734,1705353039541,-154.69,0.00023895,2]
[311718736,1705353039550,-154.57,0.00023958,2]
[311718738,1705353039559,-166.58,0.00023961,2]
[311718739,1705353039570,-310.52776489,0.000241,2]
[311718741,1705353039579,-154.69,0.00024157,2]
[311718743,1705353039588,-154.57,0.00024215,2]
[311718745,1705353039598,-470.42,0.00024323,2]
[311718747,1705353039607,-154.69,0.0002442,2]
[311718749,1705353039616,-2599.4,0.00024422,2]
[311718751,1705353039625,-154.57,0.00024473,2]
[311718752,1705353039635,-210.0,0.00024493,2]
[311718754,1705353039644,-167.0,0.0002456,2]
[311718756,1705353039653,-1473.75,0.00024628,2]
[311718758,1705353039663,-250.0,0.00024658,2]
[311718759,1705353039672,-154.69,0.00024682,2]
[311718761,1705353039681,-154.57,0.0002473,2]
[311718763,1705353039691,-1000.0,0.00024899,2]
[311718765,1705353039700,-154.69,0.00024944,2]
[311718767,1705353039709,-154.57,0.00024988,2]
[311718769,1705353039719,-32727.56915807,0.00024996,2]
[311718770,1705353039728,-302.22611087,0.00025,2]
[311718772,1705353039737,-505444.87458687,0.00025,2]
[311718774,1705353039746,-1247.48098647,0.00025,2]
[311718775,1705353039755,-693.1186857,0.00025,2]
[311718777,1705353039765,-167.20178626,0.00025,2]
[311718779,1705353039774,-1070.18909292,0.00025,2]
[311718781,1705353039783,-1582.64010755,0.00025,2]
[311718783,1705353039792,-374.60559964,0.00025,2]
[311718784,1705353039801,-201.83579665,0.00025,2]
[311718786,1705353039810,-550.0,0.00025,3]
[311718788,1705353039819,-650.0,0.00025,2]